Cogmind - Beta 16 @@@ ROGUE MODE // 2025.11.25 @ 18:20:35 Player: arkn Result: Destroyed by P-60 Hacker with Shock Rifle Performance ------------- Evolutions (4) 2000 Regions Visited (11) 2200 Robots Destroyed (105) 525 Value Destroyed (3262) 3262 Prototype IDs (28) 560 Alien Tech Used (0) 0 Bonus (160) 160 TOTAL SCORE: 8707 Bonus ------- High Alert Combat Kills 11 Follower Combat Kills 149 Cogmind --------- Core Integrity 0/850 Matter 42/300 Energy 157/160 System Corruption 12% Temperature Cool (2) Movement Walking (175) Ox1 Location -6/Factory Parts ------- > --- POWER (2) -------- Light Nuclear Core > --- PROPULSION (4) --- Flexi-carbon Leg > --- UTILITY (5) ------ Large Storage Unit Advanced Terrain Scanner Advanced Terrain Scan Processor Seismic Detector Weapon Cycler > --- WEAPON (4) ------- Mini Assault Cannon Great Axe > --- INVENTORY (15) --- Light Treads Improved Heat Sink Machine Analyzer Enhanced Optical Array Advanced Sensor Array Armor Integrity Analyzer Advanced ECM Suite System Restoration Module Thief Drone Bay (3/3) Plasma Rifle EMP Blaster Improved Proton Missile Launcher Improved Proton Missile Launcher Plasma Cutter Peak State ------------ > --- POWER ------------ Improved Deuterium Engine Light Angular Momentum Engine > --- PROPULSION ------- Improved Titanium Leg Improved Titanium Leg Flexi-carbon Leg Armored Leg > --- UTILITY ---------- Advanced Heat Sink Large Storage Unit Advanced Terrain Scanner Advanced Terrain Scan Processor Improved Medium Armor Plating > --- WEAPON ----------- Thermic Laser Gauss Rifle Hypervelocity Gauss Rifle Magnetic Acceleration Cannon > --- INVENTORY -------- Improved Titanium Leg Flexi-carbon Leg Flexi-carbon Leg Seismic Detector Advanced ECM Suite Reflective Plating Thief Drone Bay Advanced Assault Cannon Advanced Assault Cannon Mini Assault Cannon EMP Blaster Plasma Cutter Great Axe Great Axe [Rating: 70] Favorites ----------- Power Improved Ion Engine Engine Improved Ion Engine Power Core Micro Nuclear Core Propulsion Light Treads Treads Light Treads Leg Improved Titanium Leg Wheel Compact Wheel Utility Large Storage Unit Device Seismic Detector Storage Large Storage Unit Processor Improved Targeting Computer Protection Reflective Plating Weapon Enhanced Autogun Energy Gun Heavy Particle Gun Ballistic Gun Enhanced Autogun Ballistic Cannon Advanced Assault Cannon Launcher EMP Blaster Impact Weapon Power Maul Slashing Weapon Great Axe Build | -11 -10 -10 -9 -9 -9 -8 -8 -7 -6 -6 -6 ------- Run | Yrd Mat Min Mat Min Exi Min Mat Fac Fac Was Fac Slots Evolved 8 | . . . 2 . . . 2 2 2 . . Power 1 | . . . . . . . . . 1 . . Propulsion 2 | . . . . . . . 1 1 . . . Utility 3 | . . . 1 . . . . 1 1 . . Weapon 2 | . . . 1 . . . 1 . . . . Parts Attached 85 | 4 4 2 7 3 1 . 17 13 7 . 27 Power 11 | . 1 . 1 . . . 2 . 2 . 5 Engine 7 | . 1 . 1 . . . 1 . 2 . 2 Core 4 | . . . . . . . 1 . . . 3 Reactor . | . . . . . . . . . . . . Propulsion 19 | 2 . . . . . . 5 5 . . 7 Treads 8 | 2 . . . . . . 4 1 . . 1 Leg 10 | . . . . . . . . 4 . . 6 Wheel 1 | . . . . . . . 1 . . . . Hover . | . . . . . . . . . . . . Flight . | . . . . . . . . . . . . Utility 22 | . 2 1 2 1 . . 3 3 4 . 6 Device 9 | . 1 1 . . . . 1 1 2 . 3 Storage 4 | . 1 . 2 . . . . . . . 1 Processor 3 | . . . . . . . . 2 1 . . Hackware . | . . . . . . . . . . . . Protection 6 | . . . . 1 . . 2 . 1 . 2 Artifact . | . . . . . . . . . . . . Weapon 33 | 2 1 1 4 2 1 . 7 5 1 . 9 Energy Gun 5 | 1 . . . . . . . 2 . . 2 Energy Cannon . | . . . . . . . . . . . . Ballistic Gun 18 | 1 1 1 3 2 1 . 6 . . . 3 Ballistic Cannon 5 | . . . . . . . 1 2 . . 2 Launcher 1 | . . . . . . . . 1 . . . Special Weapon . | . . . . . . . . . . . . Impact Weapon 2 | . . . 1 . . . . . 1 . . Slashing Weapon 2 | . . . . . . . . . . . 2 Piercing Weapon . | . . . . . . . . . . . . Special Melee Weapon . | . . . . . . . . . . . . Unidentified Prototypes 5 | . . 1 . 1 . . . 3 . . . Parts Lost 26 | . . . . . . . 1 2 . . 23 Power 4 | . . . . . . . . . . . 4 Propulsion 10 | . . . . . . . 1 1 . . 8 Utility 4 | . . . . . . . . . . . 4 Weapon 8 | . . . . . . . . 1 . . 7 Highest Loss Streak 14 | . . . . . . . 1 1 . . 14 To Critical Strikes 2 | . . . . . . . . . . . 2 Average Backups 14 | 2 6 8 14 14 14 15 14 14 14 14 14 Power . | . . . . . . . . . . . . Propulsion 1 | 1 2 2 2 2 2 2 1 1 3 3 2 Utility 5 | . . . 4 7 7 7 7 6 5 5 5 Weapon 5 | . 4 5 6 4 4 5 5 5 5 5 5 Tool/Special . | . . . . . . . . . . . . Unused Backups 27 | . . . 2 . 1 . 4 4 1 . 15 Power . | . . . . . . . . . . . . Propulsion 2 | . . . . . . . . 1 . . 1 Utility 12 | . . . . . . . 2 1 1 . 8 Weapon 12 | . . . 2 . 1 . 2 2 . . 5 Tool/Special 1 | . . . . . . . . . . . 1 Average Slot Usage (%) 96 | . 96 100 99 100 100 100 98 94 95 100 92 Engine 7 | . 14 14 11 11 11 11 4 . 5 13 8 Core 3 | . . . . . . . 4 7 4 . 3 Treads 15 | . 28 28 22 22 22 22 21 16 . . 1 Leg 7 | . . . . . . . . 9 26 26 21 Device 11 | . 12 14 21 11 11 11 7 7 10 6 12 Storage 8 | . 13 14 11 11 11 11 9 7 6 6 6 Processor 5 | . . . . . . . . 14 13 13 8 Protection 4 | . . . . 11 11 11 10 . 2 6 4 Energy Gun 2 | . 1 . . . . . . 5 6 6 3 Ballistic Gun 21 | . 25 28 31 32 33 33 31 15 6 6 5 Ballistic Cannon 4 | . . . . . . . 4 7 6 6 8 Peak Build Rating 70 | 4 9 16 22 20 22 22 33 51 62 62 70 Average Rating 35 | 3 8 9 21 19 20 22 30 40 55 62 59 On Entrance 26 | . 4 9 10 22 20 22 22 33 47 62 62 Avg Prop Armor Cover (%) 5 | 25 20 . . . . . 1 4 . . 7 Naked Turns . | . . . . . . . . . . . . Heaviest Build 70 | 3 16 17 41 41 41 40 51 50 61 61 70 Greatest Support 78 | 20 40 40 40 40 40 40 60 78 78 78 78 Greatest Overweight (x) 5 | . 5 . 1 1 1 . 3 1 . . 2 Average Overweight (x) . | . . . . 1 . . . . . . . Largest Inventory Capacity 15 | 5 8 8 15 15 15 15 15 15 15 15 15 Average Capacity 14 | 5 7 8 14 15 15 15 15 15 15 15 15 Most Carried 15 | 5 8 8 15 15 15 15 15 15 15 14 15 Average Carried 14 | 2 6 7 14 14 14 15 14 14 14 14 14 Final Capacity 15 | 5 8 8 15 15 15 15 15 15 15 15 15 Final Carried 15 | 5 8 8 15 15 15 15 15 15 14 14 14 Class Distribution -------------------- 30% | Gunner 20% | Tank 14% | Mutant 12% | Commander-Tank 9% | Skirmisher 5% | Scavenger-Skirmisher 3% | Scavenger-Tank Dominant Class ---------------- Mutant | -10/Materials Mutant | -10/Mines Gunner | -9/Materials Tank | -9/Mines Commander-Tank | -9/Exiles Commander-Tank | -8/Mines Tank | -8/Materials Gunner | -7/Factory Skirmisher | -6/Factory Skirmisher | -6/Waste Mutant | -6/Factory Resources | -11 -10 -10 -9 -9 -9 -8 -8 -7 -6 -6 -6 ----------- Run | Yrd Mat Min Mat Min Exi Min Mat Fac Fac Was Fac Matter Collected 3683 | 246 . . 305 230 . 10 900 752 196 . 1044 Remotely . | . . . . . . . . . . . . Salvage Created 3607 | 21 . . 230 231 . 10 1035 902 142 . 1036 Parts 233 | 3 . . 10 27 . 3 64 57 9 . 60 Haulers Intercepted 5 | . . . 1 . . . 2 1 . . 1 Recyclers Shooed 3 | 1 . . . . . . 1 . . . 1 Parts Field Recycled . | . . . . . . . . . . . . Retrieved Matter . | . . . . . . . . . . . . Parts Self-Destructed . | . . . . . . . . . . . . Prevented . | . . . . . . . . . . . . Parts Restored . | . . . . . . . . . . . . Kills | -11 -10 -10 -9 -9 -9 -8 -8 -7 -6 -6 -6 ------- Run | Yrd Mat Min Mat Min Exi Min Mat Fac Fac Was Fac Combat Hostiles Destroyed 85 | . . . 4 11 . 1 23 20 4 . 22 Melee 1 | . . . . . . . . . . . 1 Guns 59 | . . . 4 11 . 1 22 10 1 . 10 Cannons 20 | . . . . . . . 1 7 3 . 9 AOE 5 | . . . . . . . . 3 . . 2 Classes Destroyed 13 | 1 . . 4 . . . 4 1 . . 3 Worker 3 | . . . . . . . . . . . 3 Builder 5 | . . . . . . . 1 . . . 4 Tunneler 1 | 1 . . . . . . . . . . . Hauler 5 | . . . 1 . . . 2 1 . . 1 Recycler 3 | . . . . . . . 2 1 . . . Watcher 3 | . . . . . . . 2 . . . 1 Swarmer 39 | . . . 1 9 . 1 12 5 2 . 9 Grunt 24 | . . . 1 2 . . 6 10 . . 5 Brawler 1 | . . . . . . . 1 . . . . Duelist 1 | . . . . . . . . . . . 1 Sentry 15 | . . . 2 . . . 4 3 2 . 4 Specialist 1 | . . . . . . . . . . . 1 Programmer 4 | . . . . . . . . 2 . . 2 Best Kill Streak 10 | 1 . . 1 5 . 1 10 6 2 . 7 Combat Bots Only 7 | . . . 1 5 . 1 7 6 2 . 4 Max Kills in Single Turn 2 | 1 . . 1 2 . 1 2 2 1 . 2 Gunslinging 1 | . . . . 1 . . 1 . . . . Exploded 2 | . . . . . . . . 1 . . 2 Melee 1 | . . . . . . . . . . . 1 Uniques/NPCs Destroyed . | . . . . . . . . . . . . Combat | -11 -10 -10 -9 -9 -9 -8 -8 -7 -6 -6 -6 -------- Run | Yrd Mat Min Mat Min Exi Min Mat Fac Fac Was Fac Hostile Shots Fired 668 | . . . 31 51 . 2 85 100 51 . 348 Missed 186 | . . . 7 12 . . 14 30 16 . 107 Hits 482 | . . . 24 39 . 2 71 70 35 . 241 Projectile 482 | . . . 24 39 . 2 71 70 35 . 241 AOE 2 | . . . . . . . . 1 . . 1 Critical Strikes 10 | . . . . . . . 3 1 . . 6 Part Disruptions 1 | . . . . . . . . . . . 1 Damage Taken 6585 | . . . 264 327 . 33 777 852 332 . 4000 Core 1119 | . . . 7 74 . . 86 93 54 . 805 Absorbed by Shields . | . . . . . . . . . . . . Ignored by Resistances 44 | . . . . 9 . 2 24 . . . 9 Regen/Repaired (Parts) 116 | . . . . . . . . 116 . . . Core Remaining (%) 89 | 100 . 100 . . . 79 84 86 . . . Volleys Fired 230 | 2 2 . 15 15 . 3 48 45 12 . 88 Largest 4 | 2 2 . 3 3 . 3 4 4 3 . 4 Hottest 190 | 60 43 . 69 71 . 72 115 145 120 . 190 Shots Fired 672 | 4 4 . 44 45 . 9 176 149 36 . 205 Gun 491 | 4 4 . 44 45 . 9 164 104 24 . 93 Cannon 174 | . . . . . . . 12 38 12 . 112 Launcher 7 | . . . . . . . . 7 . . . Special . | . . . . . . . . . . . . Kinetic 593 | 2 4 . 44 45 . 9 176 117 24 . 172 Thermal 72 | 2 . . . . . . . 25 12 . 33 Explosive . | . . . . . . . . . . . . Electromagnetic 7 | . . . . . . . . 7 . . . Robot Hit Streak 15 | 1 3 . 8 6 . 4 12 14 10 . 15 Robot Miss Streak 7 | 2 3 . 2 5 . . 4 5 3 . 7 Penetration Max 1 | . . . . . . . . . . . 1 Secondary Targets 11 | . . . . 6 . . 5 . . . . Max Gunslinging Chain 1 | . . . . 1 . . 1 . . . . Shots Hit Robots 384 | 1 3 . 25 27 . 1 107 85 22 . 113 Core Hits 174 | 1 . . 9 12 . 1 41 41 10 . 59 Critical Kills 1 | . . . . . . . 1 . . . . Critical Parts Destroyed 6 | . . . . . . . . . . . 6 Critical Strikes 18 | . . . . . . . 2 3 1 . 12 Burn 4 | . . . . . . . . 1 . . 3 Destroy 7 | . . . . . . . 1 . . . 6 Blast 7 | . . . . . . . 1 2 1 . 3 Melee Attacks 26 | . . . 1 . . . . . 4 . 21 Impact 10 | . . . 1 . . . . . 4 . 5 Slashing 16 | . . . . . . . . . . . 16 Piercing . | . . . . . . . . . . . . Sneak Attacks 2 | . . . . . . . . . . . 2 Combat Hostiles . | . . . . . . . . . . . . Follow-up Attacks . | . . . . . . . . . . . . Damage Inflicted 8437 | 15 17 . 382 416 . 12 1833 2064 449 . 3249 Guns 5127 | 15 17 . 382 416 . 12 1756 1108 288 . 1133 Cannons 2351 | . . . . . . . 77 490 161 . 1623 Explosions 592 | . . . . . . . . 466 . . 126 Melee 367 | . . . . . . . . . . . 367 Ramming . | . . . . . . . . . . . . Kinetic 6673 | 15 17 . 382 416 . 12 1833 1317 274 . 2407 Thermal 929 | . . . . . . . . 405 175 . 349 Explosive 189 | . . . . . . . . 189 . . . Electromagnetic 279 | . . . . . . . . 153 . . 126 Impact 277 | . . . . . . . . . . . 277 Slashing 90 | . . . . . . . . . . . 90 Piercing . | . . . . . . . . . . . . Highest Corruption 12 | . . . . . . . . . . 5 12 Average Corruption 6 | . . . . . . . . . . 5 6 Corruption Purged . | . . . . . . . . . . . . Corruption Blocked . | . . . . . . . . . . . . Effects 56 | . . . . . . . . . . 2 54 Message Errors 16 | . . . . . . . . . . . 16 Matter Fused 11 | . . . . . . . . . . . 11 Heat Flow Errors 3 | . . . . . . . . . . . 3 Energy Discharges 9 | . . . . . . . . . . . 9 Parts Rejected 1 | . . . . . . . . . . 1 . Parts Fused 1 | . . . . . . . . . . . 1 Data Loss (minor) 5 | . . . . . . . . . . 1 4 Data Loss (major) 4 | . . . . . . . . . . . 4 Misfires 3 | . . . . . . . . . . . 3 Alerts 2 | . . . . . . . . . . . 2 Weapon Failures 1 | . . . . . . . . . . . 1 Overload Shots . | . . . . . . . . . . . . Overflow Damage 299 | . . . . . . . . 87 . . 212 Projectiles 61 | . . . . . . . . 9 . . 52 Explosions 78 | . . . . . . . . 78 . . . Melee 160 | . . . . . . . . . . . 160 Knockbacks 11 | . . . . . . . . 2 . . 9 Impact 1 | . . . . . . . . . . . 1 Kinetic 10 | . . . . . . . . 2 . . 8 Secondary . | . . . . . . . . . . . . Self-Inflicted Damage . | . . . . . . . . . . . . Shots . | . . . . . . . . . . . . Rammed . | . . . . . . . . . . . . Targets Rammed . | . . . . . . . . . . . . Kicked . | . . . . . . . . . . . . Crushed . | . . . . . . . . . . . . Highest Temperature 537 | . 2 . 50 120 . 64 385 285 88 . 537 Average Temperature 104 | . 1 . 18 43 . 34 135 64 31 . 134 Received Heat Transfer 1104 | . . . 51 39 . 9 225 150 60 . 570 Effects 25 | . . . . . . . 4 . . . 21 Shutdowns 5 | . . . . . . . 1 . . . 4 Energy Bleed 1 | . . . . . . . 1 . . . . Interference 6 | . . . . . . . 2 . . . 4 Short Circuit 2 | . . . . . . . . . . . 2 Damage (major) 10 | . . . . . . . . . . . 10 Damage (core) 1 | . . . . . . . . . . . 1 Siege Activations . | . . . . . . . . . . . . Martial Activations . | . . . . . . . . . . . . Shielding Activations . | . . . . . . . . . . . . Robots Disrupted . | . . . . . . . . . . . . Combat Hostiles . | . . . . . . . . . . . . Robots Corrupted 1 | . . . . . . . . . . . 1 Combat Hostiles . | . . . . . . . . . . . . Parts Fried 1 | . . . . . . . . . . . 1 Impact Corruptions 3 | . . . . . . . . . . . 3 Robots Melted . | . . . . . . . . . . . . Combat Hostiles . | . . . . . . . . . . . . Parts Melted 1 | . . . . . . . . . . . 1 Heat Transferred 2349 | . . . . . . . . 779 333 . 1237 Parts Sabotaged . | . . . . . . . . . . . . Parts Stolen . | . . . . . . . . . . . . Parts Stripped . | . . . . . . . . . . . . Power Chain Reactions 2 | . . . . . . . . 2 . . . Alert | -11 -10 -10 -9 -9 -9 -8 -8 -7 -6 -6 -6 ------- Run | Yrd Mat Min Mat Min Exi Min Mat Fac Fac Was Fac Maximum Alert Level 2 | . . . . . . . 1 2 1 . 1 Low Security (%) 69 | 100 100 100 100 100 . 100 33 18 88 100 99 Level 1 28 | . . . . . . . 66 71 11 . . Level 2 2 | . . . . . . . . 9 . . . Level 3 . | . . . . . . . . . . . . Level 4 . | . . . . . . . . . . . . Level 5 . | . . . . . . . . . . . . High Security . | . . . . . . . . . . . . Max Security . | . . . . . . . . . . . . Peak Influence 423 | 5 . . 46 160 . 107 387 423 214 43 200 Initial 199 | . . . . . . . 37 144 199 43 . Average 132 | 1 . . 7 49 . 24 212 262 175 21 95 Influence Increases 3359 | 5 . . 177 333 . 117 768 872 138 . 949 Destroy 0b10 Robot/C 1840 | . . . 80 260 . 80 500 400 80 . 440 Destroy 0b10 Robot/NC 100 | 5 . . 5 . . . 35 10 . . 45 Destroy Leader 466 | . . . 42 50 . 10 128 102 20 . 114 Allied During Kill 50 | . . . . 8 . 27 15 . . . . Successful Hack 110 | . . . 18 . . . . 24 . . 68 Disable Machine 270 | . . . 15 . . . 30 180 . . 45 Anti-Garrison Action 200 | . . . . . . . . . . . 200 Destroy Structure 143 | . . . 2 . . . 15 81 8 . 37 Lose Combat Pursuer 180 | . . . 15 15 . . 45 75 30 . . Influence Decreases 3211 | 5 . . 177 286 47 20 547 782 423 123 801 Entered New Map 570 | . . . . . 47 . 60 174 209 80 . Time Decay 2336 | 5 . . 177 286 . 20 432 588 214 43 571 Lost Part 260 | . . . . . . . 10 20 . . 230 Lost Ally 45 | . . . . . . . 45 . . . . Squads Dispatched 26 | . 1 . 1 . . . 3 8 3 . 10 Investigation 3 | . . . 1 . . . 1 . . . 1 Extermination 6 | . . . . . . . . 3 . . 3 Reinforcement 11 | . 1 . . . . . 2 2 . . 6 Assault . | . . . . . . . . . . . . Garrison 6 | . . . . . . . . 3 3 . . Intercept . | . . . . . . . . . . . . Searches Triggered . | . . . . . . . . . . . . Construction Impeded 2 | . . . . . . . . . . . 2 Haulers Reinforced 1 | . . . . . . . . 1 . . . Active Scanning Responses . | . . . . . . . . . . . . Cargo Convoy Interrupts 1 | . . . . . . . . . . . 1 Stealth | -11 -10 -10 -9 -9 -9 -8 -8 -7 -6 -6 -6 --------- Run | Yrd Mat Min Mat Min Exi Min Mat Fac Fac Was Fac Distress Signals 8 | . . . . . . . 4 2 . . 2 Communications Jammed . | . . . . . . . . . . . . Distress Signals . | . . . . . . . . . . . . Times Spotted 139 | . 1 . 9 13 . 5 35 30 6 4 36 Peak Tracking Total 8 | . 1 . 3 4 . 4 8 5 3 5 8 Tactical Retreats 9 | . . . 1 1 . . 2 4 1 . . Traps | -11 -10 -10 -9 -9 -9 -8 -8 -7 -6 -6 -6 ------- Run | Yrd Mat Min Mat Min Exi Min Mat Fac Fac Was Fac Traps Triggered 3 | . . . . . . . 1 . 1 . 1 Indirectly . | . . . . . . . . . . . . Trap Hack Attempts . | . . . . . . . . . . . . Triggered . | . . . . . . . . . . . . Disarmed . | . . . . . . . . . . . . Reprogrammed . | . . . . . . . . . . . . Reused . | . . . . . . . . . . . . Traps Extracted . | . . . . . . . . . . . . Installed . | . . . . . . . . . . . . Triggered . | . . . . . . . . . . . . Machines | -11 -10 -10 -9 -9 -9 -8 -8 -7 -6 -6 -6 ---------- Run | Yrd Mat Min Mat Min Exi Min Mat Fac Fac Was Fac Machines Disabled 18 | . . . 1 . . . 2 12 . . 3 Max in Single Turn 4 | . . . 1 . . . 1 4 . . 3 Garrison Access 1 | . . . . . . . . . . . 1 Machines Repaired . | . . . . . . . . . . . . Machines Dismantled . | . . . . . . . . . . . . Machines Sabotaged . | . . . . . . . . . . . . Overloaded Fab Kills . | . . . . . . . . . . . . Hacking | -11 -10 -10 -9 -9 -9 -8 -8 -7 -6 -6 -6 --------- Run | Yrd Mat Min Mat Min Exi Min Mat Fac Fac Was Fac Machines Accessed 22 | . . 1 2 . 1 . 1 7 3 . 7 Terminals 9 | . . . 2 . . . . 2 1 . 4 Fabricators 3 | . . . . . . . . 1 . . 2 Repair Stations 3 | . . . . . . . . 3 . . . Recycling Units 1 | . . . . . . . . . 1 . . Scanalyzers 3 | . . . . . . . 1 1 1 . . Garrison Access 1 | . . . . . . . . . . . 1 Total Hacks 61 | . . 1 10 . 1 . 2 23 6 . 18 Successful 31 | . . 1 4 . 1 . 1 13 1 . 10 Failed 29 | . . . 6 . . . . 10 5 . 8 Catastrophic 4 | . . . . . . . . . . . 4 Database Lockouts 1 | . . . . . . . 1 . . . . Manual 39 | . . . 10 . 1 . . 8 4 . 16 Terminals 30 | . . . 10 . . . . 7 2 . 11 Fabricators 10 | . . . . . . . . 5 . . 5 Repair Stations 8 | . . . . . . . . 8 . . . Recycling Units 2 | . . . . . . . . . 2 . . Scanalyzers 7 | . . . . . . . 2 3 2 . . Garrison Access 2 | . . . . . . . . . . . 2 Terminal Hacks 5 | . . 1 . . 1 . . 3 . . . Open Door 1 | . . 1 . . . . . . . . . Branch Access Points 1 | . . . . . . . . 1 . . . Emergency Access Points 1 | . . . . . . . . 1 . . . Terminal Index 1 | . . . . . . . . 1 . . . Proto ID Catalog 1 | . . . . . 1 . . . . . . Fabricator Hacks 3 | . . . . . . . . 2 . . 1 Network Status 2 | . . . . . . . . 1 . . 1 Build 1 | . . . . . . . . 1 . . . Repair Station Hacks 3 | . . . . . . . . 3 . . . Scan Component 2 | . . . . . . . . 2 . . . Repair 1 | . . . . . . . . 1 . . . Recycling Unit Hacks . | . . . . . . . . . . . . Scanalyzer 4 | . . . . . . . 1 2 1 . . Retrieve Study 4 | . . . . . . . 1 2 1 . . Garrison Access Hacks . | . . . . . . . . . . . . Unauthorized Hacks 16 | . . . 4 . . . . 3 . . 9 Terminals 11 | . . . 4 . . . . 2 . . 5 Track 3 | . . . 1 . . . . . . . 2 Botnet 6 | . . . 2 . . . . 1 . . 3 Operators 2 | . . . 1 . . . . 1 . . . Fabricators 4 | . . . . . . . . 1 . . 3 Report 2 | . . . . . . . . 1 . . 1 Liberate 2 | . . . . . . . . . . . 2 Repair Stations . | . . . . . . . . . . . . Recycling Units . | . . . . . . . . . . . . Scanalyzers . | . . . . . . . . . . . . Garrison Access 1 | . . . . . . . . . . . 1 Jam 1 | . . . . . . . . . . . 1 Data Cores Recovered . | . . . . . . . . . . . . Used . | . . . . . . . . . . . . Hacking Detections 18 | . . . 2 . . . 1 6 3 . 6 Full Trace Events 1 | . . . 1 . . . . . . . . Feedback Events . | . . . . . . . . . . . . Feedback Blocked . | . . . . . . . . . . . . Robot Schematics Acquired . | . . . . . . . . . . . . Robots Built . | . . . . . . . . . . . . Authchips . | . . . . . . . . . . . . Time . | . . . . . . . . . . . . Total Robot Build Rating . | . . . . . . . . . . . . Part Schematics Acquired . | . . . . . . . . . . . . Parts Built 2 | . . . . . . . . 2 . . . Authchips . | . . . . . . . . . . . . Time 95 | . . . . . . . . 95 . . . Total Part Build Rating 10 | . . . . . . . . 10 . . . Part Studies Acquired 4 | . . . . . . . 1 2 1 . . Parts Repaired 1 | . . . . . . . . 1 . . . Time 26 | . . . . . . . . 26 . . . Parts Recycled . | . . . . . . . . . . . . Recycled Matter . | . . . . . . . . . . . . Retrieved Matter . | . . . . . . . . . . . . Retrieved Components . | . . . . . . . . . . . . Parts Scanalyzed . | . . . . . . . . . . . . Part Schematics Acquired . | . . . . . . . . . . . . Parts Damaged . | . . . . . . . . . . . . Bothacking | -11 -10 -10 -9 -9 -9 -8 -8 -7 -6 -6 -6 ------------ Run | Yrd Mat Min Mat Min Exi Min Mat Fac Fac Was Fac Used RIF Installer . | . . . . . . . . . . . . Robots Hacked . | . . . . . . . . . . . . Non-combat . | . . . . . . . . . . . . Combat . | . . . . . . . . . . . . Robot Hacks Applied . | . . . . . . . . . . . . Relay Couplers Released . | . . . . . . . . . . . . Fabnet Peak Effective % . | . . . . . . . . . . . . Robots Rewired 3 | . . . . . 3 . . . . . . Allies Hacked . | . . . . . . . . . . . . Hacks Repelled . | . . . . . . . . . . . . Allies | -11 -10 -10 -9 -9 -9 -8 -8 -7 -6 -6 -6 -------- Run | Yrd Mat Min Mat Min Exi Min Mat Fac Fac Was Fac Total Allies 6 | . . . . 3 3 . . . . . . Largest Group 6 | . . . . 3 6 6 5 . . . . Highest-Rated Group 77 | . . . . 40 77 77 56 . . . . Highest-Rated Ally 21 | . . . . 16 21 21 16 . . . . Total Orders . | . . . . . . . . . . . . Ally Attacks 75 | . . . . 21 . 22 32 . . . . Total Damage 748 | . . . . 181 . 231 336 . . . . Kills 8 | . . . . 2 . 4 2 . . . . Allies Corrupted . | . . . . . . . . . . . . Allies Melted . | . . . . . . . . . . . . Intel | -11 -10 -10 -9 -9 -9 -8 -8 -7 -6 -6 -6 ------- Run | Yrd Mat Min Mat Min Exi Min Mat Fac Fac Was Fac Active Infowar (turns) 5879 | . 140 407 1090 852 872 132 415 . 438 106 1427 Sensors 420 | . . . . . . . . . 420 . . Terrain 1551 | . . . . . . . . . 18 106 1427 Seismic 4400 | . 140 407 1090 852 872 132 415 . . . 492 Robot Analysis Total . | . . . . . . . . . . . . Derelict Logs Recovered . | . . . . . . . . . . . . Drone Launches . | . . . . . . . . . . . . Drone Recoveries . | . . . . . . . . . . . . Exploration | -11 -10 -10 -9 -9 -9 -8 -8 -7 -6 -6 -6 ------------- Run | Yrd Mat Min Mat Min Exi Min Mat Fac Fac Was Fac Turns Passed 9096 | 47 143 409 1090 852 872 132 1416 1853 442 106 1734 Spaces Moved 4718 | 58 68 232 411 334 415 78 599 1045 304 94 1080 Core 64 | 57 7 . . . . . . . . . . Treads 2820 | 1 61 232 411 334 415 78 598 690 . . . Legs 1833 | . . . . . . . . 355 304 94 1080 Wheels 1 | . . . . . . . 1 . . . . Hover . | . . . . . . . . . . . . Flight . | . . . . . . . . . . . . Fastest Speed 50 | 50 160 160 160 240 160 160 145 121 112 112 105 Average Speed 163 | 51 171 160 220 240 202 160 203 147 112 112 120 Slowest Speed 320 | 160 300 160 240 240 240 160 320 200 123 112 245 Overloaded Moves . | . . . . . . . . . . . . Propulsion Burnouts . | . . . . . . . . . . . . Robots Hopped . | . . . . . . . . . . . . Potential Cave-ins . | . . . . . . . . . . . . Cave-ins Triggered . | . . . . . . . . . . . . Exploration Rate (%) 39 | 2 11 57 27 66 90 23 50 27 9 78 32 Regions Visited 11 Branch Regions 4 Pre-discovered Areas . | . . . . . . . . . . . . Known Exits Taken 1 | . . . . . . . . 1 . . . Unknown Exits Taken 8 | 1 1 1 1 1 1 1 1 . . . . Scrap Searched 2 | . . . . 2 . . . . . . . Spaces Dug 24 | . . . . . . . 1 1 4 . 18 Terrain Destroyed 136 | . . . . . . . 5 87 8 . 36 Melee 18 | . . . . . . . . . 4 . 14 Projectile 36 | . . . . . . . 5 5 4 . 22 AOE 82 | . . . . . . . . 82 . . . Terrain Rammed . | . . . . . . . . . . . . Walls Destroyed . | . . . . . . . . . . . . Machines Disabled . | . . . . . . . . . . . . Actions | -11 -10 -10 -9 -9 -9 -8 -8 -7 -6 -6 -6 --------- Run | Yrd Mat Min Mat Min Exi Min Mat Fac Fac Was Fac Total 5691 | 68 91 269 568 360 446 80 735 1284 372 94 1324 Wait 464 | . 11 33 113 7 3 . 43 152 37 . 65 Move 4708 | 57 67 231 410 333 414 77 598 1044 304 93 1080 Hop . | . . . . . . . . . . . . Pick Up 64 | 5 6 1 13 1 1 . 10 8 2 . 17 Fast Attach 31 | 4 1 . 1 . . . 4 10 3 1 7 Attach 25 | . 3 . 2 1 . . 3 1 1 . 14 Detach . | . . . . . . . . . . . . Swap 52 | . . 3 6 2 1 . 11 8 5 . 16 Drop 66 | . 1 1 7 1 2 . 18 16 4 . 16 Fire 230 | 2 2 . 15 15 . 3 48 45 12 . 88 Melee 26 | . . . 1 . . . . . 4 . 21 Ram . | . . . . . . . . . . . . Kick . | . . . . . . . . . . . . Crush . | . . . . . . . . . . . . Escape Stasis . | . . . . . . . . . . . . Rewire 25 | . . . . . 25 . . . . . . Trap . | . . . . . . . . . . . . Miscellaneous . | . . . . . . . . . . . . Route ------- -11/Scrapyard -10/Materials -10/Mines -9/Materials (discovered 2 exits: [*Min] / [*Sto]) -9/Mines (discovered 3 exits: *Mat x2 / *Exi) -9/Exiles (discovered 2 exits: [*Min x2]) -8/Mines -8/Materials -7/Factory (discovered 3 exits: *Fac / *Low x2) -6/Factory -6/Waste -6/Factory (discovered 1 exit: Low) History --------- Turn | Location | Event 6 | -11/Scrapyard | Discovered new exit (range 16) 48 | -11/Scrapyard | Entered Materials 145 | -10/Materials | Discovered new exit (range 6) 191 | -10/Materials | Entered Mines 227 | -10/Mines | Found a hidden stash of uninstalled traps 287 | -10/Mines | Discovered new exit (range 6) 309 | -10/Mines | Found the Drone Emporium 311 | -10/Mines | Build established: Mutant 317 | -10/Mines | Found Prototype Device 402 | -10/Mines | Identified Thief Drone Bay 499 | -10/Mines | Assembled infested the area 600 | -10/Mines | Entered Materials 600 | -9/Materials | Evolved 2 slots: Utility x1, Weapon x1 782 | -9/Materials | Discovered new exit (range 3) 910 | -9/Materials | Build established: Gunner 1673 | -9/Materials | Discovered new exit (range 6) 1690 | -9/Materials | Entered Mines 1920 | -9/Mines | Discovered new exit (range 9) 2000 | -9/Mines | Build established: Tank 2107 | -9/Mines | Assisted by bots powering up and referring to "LRC-V3" 2228 | -9/Mines | Deemed a non-threat by the Exiles lab entrance 2230 | -9/Mines | Discovered new exit (range 5) 2269 | -9/Mines | Discovered new exit (range 13) 2291 | -9/Mines | YI-UF0 nonchalantly dropped a Grenade Launcher on the ground 2542 | -9/Mines | Entered Exiles 2542 | -9/Exiles | Found Exiles lab destroyed 2542 | -9/Exiles | Accompanied by 3 allies 2574 | -9/Exiles | Discovered new exit (range 15) 2826 | -9/Exiles | Opened EX-Vault 2950 | -9/Exiles | Build established: Commander-Tank 3394 | -9/Exiles | Discovered new exit (range 10) 3414 | -9/Exiles | Entered Mines 3414 | -8/Mines | Accompanied by 6 allies 3527 | -8/Mines | Discovered new exit (range 7) 3546 | -8/Mines | Entered Materials 3546 | -8/Materials | Accompanied by 5 allies 3546 | -8/Materials | Evolved 2 slots: Propulsion x1, Weapon x1 3784 | -8/Materials | Lost 5 allies 4040 | -8/Materials | Build established: Tank 4170 | -8/Materials | Destroyed 7 combat bots 4253 | -8/Materials | Discovered new exit (range 15) 4871 | -8/Materials | Central database locked down 4962 | -8/Materials | Entered Factory 4962 | -7/Factory | Evolved 2 slots: Propulsion x1, Utility x1 5093 | -7/Factory | Discovered new exit (range 7) 5103 | -7/Factory | Identified exit to Lower Caves 5256 | -7/Factory | Build established: Gunner 5456 | -7/Factory | Repaired Lgt. Treads+ 5858 | -7/Factory | Fabricated Flexi-carbon Leg (x2) 5975 | -7/Factory | Discovered new exit (range 5) 5980 | -7/Factory | Identified exit to Factory 6518 | -7/Factory | Garrison activated, responded to threat 6815 | -7/Factory | Entered another Factory area 6815 | -6/Factory | Evolved 2 slots: Power x1, Utility x1 7047 | -6/Factory | Garrison activated, responded to threat 7128 | -6/Factory | Build established: Skirmisher 7191 | -6/Factory | Discovered new exit (range 3) 7193 | -6/Factory | Identified exit to Lower Caves 7257 | -6/Factory | Sucked down chute 7257 | -6/Factory | Entered Waste 7272 | -6/Waste | EMP discharged 7284 | -6/Waste | Spotted C-40 Crusher 7285 | -6/Waste | Spotted C-40 Crusher 7286 | -6/Waste | Spotted C-40 Crusher 7293 | -6/Waste | Spotted C-40 Crusher 7351 | -6/Waste | Discovered new exit (range 12) 7363 | -6/Waste | Entered Factory 8063 | -6/Factory | Discovered exit to Lower Caves (range 19) 8176 | -6/Factory | Lost 3 parts (1n1u1w) 8270 | -6/Factory | Build established: Scavenger-Skirmisher 8528 | -6/Factory | Core integrity fell below 50% 8543 | -6/Factory | Cargo convoy interrupted 8572 | -6/Factory | Lost 14 parts (3p4n3u4w) 8792 | -6/Factory | Build established: Mutant 9054 | -6/Factory | Core integrity fell below 20% 9085 | -6/Factory | System corruption reached 10% 9097 | -6/Factory | Destroyed by P-60 Hacker with Shock Rifle Last Messages --------------- 09062_ Acquired 7 matter. 09062_ U-05 Engineer builds a Wall. 09063_ M-28 Smith repairs G-50 Soldier. 09065_ Flexi-carbon Leg+ destroyed. 09069_ Lgt. Treads+ destroyed. 09070_ R-10 Processor collects Adv. Heat Sink. 09071_ G-50 Soldier heat damages core (-16). 09071_ G-50 Soldier overheating. 09075_ G-50 Soldier heat damages Carbon-fiber Leg. 09075_ G-50 Soldier destroyed. 09075_ Lgt. Fission Core destroyed. 09078_ P-60 Hacker knocked back. 09079_ System corrupted: Matter fused (-7). 09084_ P-60 Hacker Imp. Heat Sink blasted off. 09084_ P-60 Hacker knocked back. 09088_ Acquired 16 matter. 09090_ Acquired 2 matter. 09091_ R-10 Processor collects Imp. Heat Sink. 09091_ Acquired 19 matter. 09093_ K-01 Serf collects debris. Map ----- +----------------------------------------------------+ | ############## ## " | | ############## ""## | | ##############%""" ""## " | | ############## """ T"## " | | ####?######### """ ""## " | | ############## ""## | | ############## ! ## | | ############################### | | ############################## | | ##########! ! ############### | | ########## #############?# | | ########## """ ##########?#### | | ########## """ ####?#####?# | | ########## """ ## ####?### | | ########## ## #### ### | | ########## """ ## + ### | | ########## """ ## ####?### | | ########## """ ## #### ?## | | ########## ## #### ### | | ########## ! ############?### | | # # ############ ### | | # % ###+############## ##? | | # m # ############ ?#? | | # p R# ############ ### | | # % +% T ?#? | | # @ k# ############??## | | # k#% = ############ ?#? | | # ### #######?###### #?? | | # ### ############?#??## | | ############ ##?##########????? | | ###?#?# ### ###??##??#? ??? ?? | | ##?########? ##?####?### ? "?? | | ######?##### #######?#?? ?? ??? | | ############ ###########? ????? | | ##?######### ##########?? ? ??? | | ##?######### ##########???????? | | ?#####?##### #?#?##??####?????? | | #?####?##### #########?#??????? | | ############?####?###???#?????? | | ########## #?? ?? #???????? | | ###?#?#?## ? #? ? ? ????????? | | ??#####??? ?H? ? ?????????????? | | ?###??##?? ?? #??????????????? | | ?#?######???? ?# ?????????????? | | #??###?##???? ?# ?????????????? | | # ?"""??? # ?????????????????? | | #???"??""?+???????????????????? | | ??????????????????????????????? | | ??????????????????????????????? | | ??????????????????????????????? | +----------------------------------------------------+ Best States ------------- Heat Dissipation 56 Energy Generation 29 Energy Capacity 480 Matter Stores 300 Matter Capacity 300 Sight Range 16 Robot Scan Range 15 Terrain Scan Range 20 Terrain Scan Density 210 Armor Coverage 375 Resistance: TH 10 Weapon Cycling 15 Evasion (%) 55 Targeting Accuracy 6 Recoil Reduction 3 Item Schematics ----------------- None Robot Schematics ------------------ None Fabricated ------------ Flexi-carbon Leg | x2 | -7/Factory | Preloaded Repaired ---------- Lgt. Treads | 17% | -7/Factory Studied --------- Lgt. Treads | -8/Materials | Hacked Imp. Carbon-fiber Leg | -7/Factory | Hacked Flexi-carbon Leg | -7/Factory | Hacked Imp. Titanium Leg | -6/Factory | Hacked Alien Tech Used ----------------- None Achievements -------------- None Challenges ------------ None Game ------ Seed WeldingPlatingJammer Manual? 0 Play Time 02:34:16 Cumulative 258.1 hours Start 2025.11.24 @ 17:01:27 End 2025.11.25 @ 18:20:35 Sessions 1 Manual Loads 0 Difficulty Rogue Special Mode None Game No. 113 Rogue 113 Adventurer 0 Explorer 0 Win Type - Total 4 Types 4/0/0/0/0/0/0/0/0/0 Lore% 52 Gallery% 56 Achievement% 41 Wizard Run 0 Options --------- Layout 0 ASCII 0 Keyboard 0 Movement Numpad Keybinds 0 Fullscreen 2 Font 24/Smallcaps Map View 113x50 Zoom Use 0% Tactical HUD 1 Map Filters NONE Filters NONE Steam 1 RUN: cc44a910-25dc-4f6d-b364-68d70ca1b308